Cogmind - Beta 12 @@@ ROGUE MODE // 2023.07.07 @ 21:41:07 Player: Senator Honkstrong Result: Destroyed by 8R-AWN with 8R-AWN's Boregun Performance ------------- Evolutions (0) 0 Regions Visited (3) 600 Robots Destroyed (21) 105 Value Destroyed (434) 434 Prototype IDs (28) 560 Alien Tech Used (0) 0 Bonus (80) 80 TOTAL SCORE: 1779 Bonus ------- Aligned with FarCom 300 Friendly Fire -220 Cogmind --------- Core Integrity 0/250 Matter 222/300 Energy 100/100 System Corruption 0% Temperature Cool (0) Movement Core (550) Ox10 Location -10/Exiles Parts ------- > --- POWER (1) -------- (None) > --- PROPULSION (2) --- (None) > --- UTILITY (2) ------ Large Storage Unit PSU Rigger > --- WEAPON (2) ------- AWS/Gauss > --- INVENTORY (15) --- Ion Engine Light Treads Light Treads Experimental Sensor Array Light Armor Plating Light Armor Plating AWS/Thermal Light Assault Rifle Grenade Launcher Rocket Launcher Peak State ------------ > --- POWER ------------ Ion Engine > --- PROPULSION ------- Light Treads Light Treads > --- UTILITY ---------- Large Storage Unit PSU Rigger > --- WEAPON ----------- AWS/Gauss > --- INVENTORY -------- Ion Engine Light Treads Light Treads Experimental Sensor Array Light Armor Plating Light Armor Plating AWS/Thermal Light Assault Rifle Grenade Launcher Rocket Launcher [Rating: 31] Favorites ----------- Power Ion Engine Engine Ion Engine Propulsion Light Treads Treads Light Treads Utility Targeting Computer Device Improved Terrain Scanner Storage Large Storage Unit Processor Targeting Computer Protection Light Armor Plating Weapon Light Assault Rifle Energy Gun EM Pulse Gun Ballistic Gun Light Assault Rifle Launcher Grenade Launcher Build | -11 -10 -10 -10 ------- Run | Jun Mat Min Exi Slots Evolved . | . . . . Power . | . . . . Propulsion . | . . . . Utility . | . . . . Weapon . | . . . . Parts Attached 32 | 7 12 4 9 Power 2 | 1 1 . . Engine 2 | 1 1 . . Core . | . . . . Reactor . | . . . . Propulsion 4 | 2 2 . . Treads 4 | 2 2 . . Leg . | . . . . Wheel . | . . . . Hover . | . . . . Flight . | . . . . Utility 7 | 2 3 . 2 Device 2 | 1 . . 1 Storage 2 | 1 1 . . Processor 1 | . 1 . . Hackware . | . . . . Protection 2 | . 1 . 1 Artifact . | . . . . Weapon 19 | 2 6 4 7 Energy Gun 2 | 1 . . 1 Energy Cannon . | . . . . Ballistic Gun 11 | 1 4 2 4 Ballistic Cannon . | . . . . Launcher 6 | . 2 2 2 Special Weapon . | . . . . Impact Weapon . | . . . . Slashing Weapon . | . . . . Piercing Weapon . | . . . . Special Melee Weapon . | . . . . Unidentified Prototypes . | . . . . Parts Lost 4 | . . 1 3 Power 1 | . . . 1 Propulsion 2 | . . . 2 Utility . | . . . . Weapon 1 | . . 1 . Highest Loss Streak 3 | . . 1 3 To Critical Strikes 2 | . . . 2 Average Slot Usage (%) 97 | . 98 100 92 Engine 13 | . 14 14 13 Treads 27 | . 27 28 28 Device 2 | . 5 . 2 Storage 14 | . 14 14 14 Processor 10 | . 8 14 11 Energy Gun 1 | . 4 . . Ballistic Gun 19 | . 23 19 13 Launcher 4 | . . 8 7 Naked Turns . | . . . . Heaviest Build 37 | 15 28 29 37 Greatest Support 40 | 40 40 40 40 Greatest Overweight (x) 2 | 2 . . . Average Overweight (x) . | . . . . Largest Inventory Capacity 15 | 8 15 15 15 Average Capacity 12 | 7 9 15 15 Most Carried 15 | 5 15 15 15 Average Carried 11 | 3 8 14 14 Final Capacity 15 | 8 15 15 15 Final Carried 15 | 4 15 15 11 Class Distribution -------------------- 100% | Mutant Dominant Class ---------------- Mutant | -10/Materials Mutant | -10/Mines Mutant | -10/Exiles Resources | -11 -10 -10 -10 ----------- Run | Jun Mat Min Exi Matter Collected 837 | 287 155 235 160 Remotely . | . . . . Salvage Created 487 | 153 236 96 2 Parts 30 | 14 11 5 . Haulers Intercepted . | . . . . Recyclers Shooed . | . . . . Parts Field Recycled . | . . . . Retrieved Matter . | . . . . Parts Self-Destructed . | . . . . Prevented . | . . . . Kills | -11 -10 -10 -10 ------- Run | Jun Mat Min Exi Combat Hostiles Destroyed 21 | . 10 6 5 Guns 5 | . 4 1 . AOE 16 | . 6 5 5 Classes Destroyed 6 | 2 2 2 . Worker 2 | . . 2 . Tunneler 3 | 3 . . . Recycler 1 | 1 . . . Swarmer 6 | . 3 3 . Grunt 9 | . 7 2 . Assembled 6 | . . 1 5 Best Kill Streak 5 | 4 5 4 5 Combat Bots Only 5 | . 5 3 5 Max Kills in Single Turn 5 | 1 3 3 5 Gunslinging . | . . . . Exploded 5 | . 3 2 5 Melee . | . . . . Uniques/NPCs Destroyed . | . . . . Combat | -11 -10 -10 -10 -------- Run | Jun Mat Min Exi Damage Taken 1269 | . 452 213 604 Core 258 | . 108 47 103 Absorbed by Shields . | . . . . Regen/Repaired (Parts) 158 | . 158 . . Core Remaining (%) 100 | 100 . . . Volleys Fired 68 | 6 45 14 3 Largest 2 | 2 2 2 1 Hottest 60 | 60 60 50 33 Shots Fired 131 | 12 90 26 3 Gun 108 | 12 80 15 1 Cannon . | . . . . Launcher 23 | . 10 11 2 Special . | . . . . Kinetic 97 | 6 75 15 1 Thermal . | . . . . Explosive 23 | . 10 11 2 Electromagnetic 11 | 6 5 . . Robot Hit Streak 16 | 7 16 9 2 Robot Miss Streak 3 | 1 2 3 1 Penetration Max . | . . . . Secondary Targets 1 | . 1 . . Max Gunslinging Chain 1 | . 1 . . Shots Hit Robots 87 | 7 64 14 2 Core Hits 52 | 5 25 7 15 Critical Kills . | . . . . Critical Parts Destroyed . | . . . . Critical Strikes . | . . . . Melee Attacks . | . . . . Impact . | . . . . Slashing . | . . . . Piercing . | . . . . Sneak Attacks . | . . . . Combat Hostiles . | . . . . Follow-up Attacks . | . . . . Damage Inflicted 2189 | 106 1158 520 405 Guns 793 | 106 622 55 10 Cannons . | . . . . Explosions 1363 | . 536 432 395 Melee . | . . . . Ramming 33 | . . 33 . Kinetic 685 | 40 580 55 10 Thermal 44 | . 44 . . Explosive 1319 | . 492 432 395 Electromagnetic 108 | 66 42 . . Impact . | . . . . Slashing . | . . . . Piercing . | . . . . Highest Corruption . | . . . . Average Corruption . | . . . . Corruption Purged . | . . . . Corruption Blocked . | . . . . Overload Shots . | . . . . Overflow Damage 74 | . . 60 14 Projectiles . | . . . . Explosions 74 | . . 60 14 Melee . | . . . . Knockbacks . | . . . . Impact . | . . . . Kinetic . | . . . . Secondary . | . . . . Self-Inflicted Damage 150 | . 70 80 . Shots 8 | . 4 4 . Rammed 5 | . . 5 . Targets Rammed 6 | . . 6 . Kicked . | . . . . Crushed 1 | . . 1 . Highest Temperature 24 | . 24 20 . Average Temperature 10 | . 9 11 . Received Heat Transfer 267 | . 201 66 . Siege Activations . | . . . . Robots Corrupted . | . . . . Combat Hostiles . | . . . . Parts Fried . | . . . . Impact Corruptions . | . . . . Robots Melted . | . . . . Combat Hostiles . | . . . . Parts Melted . | . . . . Heat Transferred 50 | . 50 . . Parts Sabotaged . | . . . . Parts Stolen . | . . . . Parts Stripped . | . . . . Power Chain Reactions 1 | . 1 . . Missiles Intercepted . | . . . . Alert | -11 -10 -10 -10 ------- Run | Jun Mat Min Exi Peak Influence 185 | 20 185 84 . Initial 15 | . 13 15 . Average 68 | 7 77 63 . Maximum Alert Level . | . . . . Low Security (%) 100 | 100 100 100 . Level 1 . | . . . . Level 2 . | . . . . Level 3 . | . . . . Level 4 . | . . . . Level 5 . | . . . . High Security . | . . . . Max Security . | . . . . Squads Dispatched 2 | . 2 . . Investigation 1 | . 1 . . Extermination . | . . . . Reinforcement 1 | . 1 . . Assault . | . . . . Garrison . | . . . . Intercept . | . . . . Searches Triggered . | . . . . Construction Impeded . | . . . . Haulers Reinforced . | . . . . Active Scanning Responses . | . . . . Cargo Convoy Interrupts . | . . . . Stealth | -11 -10 -10 -10 --------- Run | Jun Mat Min Exi Distress Signals 1 | . 1 . . Communications Jammed . | . . . . Distress Signals . | . . . . Times Spotted 36 | . 22 6 8 Peak Tracking Total 9 | . 3 3 9 Tactical Retreats . | . . . . Traps | -11 -10 -10 -10 ------- Run | Jun Mat Min Exi Traps Triggered 1 | . 1 . . Indirectly . | . . . . Trap Hack Attempts . | . . . . Triggered . | . . . . Disarmed . | . . . . Reprogrammed . | . . . . Reused . | . . . . Traps Extracted . | . . . . Installed . | . . . . Triggered . | . . . . Machines | -11 -10 -10 -10 ---------- Run | Jun Mat Min Exi Machines Disabled 2 | . . . 2 Max in Single Turn 1 | . . . 1 Machines Repaired . | . . . . Machines Sabotaged . | . . . . Overloaded Fab Kills . | . . . . Hacking | -11 -10 -10 -10 --------- Run | Jun Mat Min Exi Machines Accessed 8 | . 7 . 1 Terminals 6 | . 6 . . Fabricators . | . . . . Repair Stations 1 | . 1 . . Recycling Units . | . . . . Scanalyzers . | . . . . Garrison Access . | . . . . Total Hacks 22 | . 21 . 1 Successful 14 | . 13 . 1 Failed 8 | . 8 . . Catastrophic 2 | . 2 . . Database Lockouts . | . . . . Manual 12 | . 11 . 1 Terminals 16 | . 16 . . Fabricators . | . . . . Repair Stations 5 | . 5 . . Recycling Units . | . . . . Scanalyzers . | . . . . Garrison Access . | . . . . Terminal Hacks 6 | . 5 . 1 Prototype ID Bank 3 | . 3 . . Unreport Threat 1 | . 1 . . Locate Traps 1 | . 1 . . EX-Prototype ID Bank 1 | . . . 1 Fabricator Hacks . | . . . . Repair Station Hacks 4 | . 4 . . Scan Component 2 | . 2 . . Repair 2 | . 2 . . Recycling Unit Hacks . | . . . . Scanalyzer . | . . . . Garrison Access Hacks . | . . . . Unauthorized Hacks 4 | . 4 . . Terminals 4 | . 4 . . Botnet 4 | . 4 . . Fabricators . | . . . . Repair Stations . | . . . . Recycling Units . | . . . . Scanalyzers . | . . . . Garrison Access . | . . . . Data Cores Recovered . | . . . . Used . | . . . . Hacking Detections 7 | . 7 . . Full Trace Events . | . . . . Feedback Events . | . . . . Feedback Blocked . | . . . . Robot Schematics Acquired . | . . . . Robots Built . | . . . . Authchips . | . . . . Time . | . . . . Total Robot Build Rating . | . . . . Part Schematics Acquired . | . . . . Parts Built . | . . . . Authchips . | . . . . Time . | . . . . Total Part Build Rating . | . . . . Parts Repaired 2 | . 2 . . Time 52 | . 52 . . Parts Recycled . | . . . . Recycled Matter . | . . . . Retrieved Matter . | . . . . Retrieved Components . | . . . . Parts Scanalyzed . | . . . . Part Schematics Acquired . | . . . . Parts Damaged . | . . . . Bothacking | -11 -10 -10 -10 ------------ Run | Jun Mat Min Exi Used RIF Installer . | . . . . Robots Hacked . | . . . . Non-combat . | . . . . Combat . | . . . . Robot Hacks Applied . | . . . . Relay Couplers Released . | . . . . Fabnet Peak Effective % . | . . . . Robots Rewired . | . . . . Allies Hacked . | . . . . Hacks Repelled . | . . . . Allies | -11 -10 -10 -10 -------- Run | Jun Mat Min Exi Total Allies . | . . . . Largest Group . | . . . . Highest-Rated Group . | . . . . Highest-Rated Ally . | . . . . Total Orders . | . . . . Ally Attacks . | . . . . Total Damage . | . . . . Kills . | . . . . Allies Corrupted . | . . . . Allies Melted . | . . . . Intel | -11 -10 -10 -10 ------- Run | Jun Mat Min Exi Robot Analysis Total . | . . . . Derelict Logs Recovered . | . . . . Drone Launches . | . . . . Drone Recoveries . | . . . . Exploration | -11 -10 -10 -10 ------------- Run | Jun Mat Min Exi Turns Passed 3116 | 119 1275 820 902 Spaces Moved 1530 | 56 618 375 481 Core 13 | 13 . . . Treads 1517 | 43 618 375 481 Legs . | . . . . Wheels . | . . . . Hover . | . . . . Flight . | . . . . Fastest Speed 50 | 50 160 160 160 Average Speed 159 | 143 160 160 160 Slowest Speed 160 | 160 160 160 160 Overloaded Moves . | . . . . Propulsion Burnouts . | . . . . Robots Hopped . | . . . . Cave-ins Triggered . | . . . . Exploration Rate (%) 51 | 4 79 54 67 Regions Visited 3 Branch Regions 2 Pre-discovered Areas . | . . . . Known Exits Taken . | . . . . Unknown Exits Taken 3 | 1 1 1 . Scrap Searched 1 | . . 1 . Spaces Dug . | . . . . Terrain Destroyed 121 | . 68 46 7 Melee . | . . . . Projectile . | . . . . AOE 121 | . 68 46 7 Terrain Rammed . | . . . . Walls Destroyed . | . . . . Machines Disabled . | . . . . Actions | -11 -10 -10 -10 --------- Run | Jun Mat Min Exi Total 2096 | 83 823 567 623 Wait 376 | 4 114 166 92 Move 1527 | 55 617 374 481 Hop . | . . . . Pick Up 51 | 11 24 2 14 Fast Attach . | . . . . Attach 17 | 7 3 1 6 Detach 5 | . . . 5 Swap 15 | . 9 3 3 Drop 31 | . 11 1 19 Fire 68 | 6 45 14 3 Melee . | . . . . Ram . | . . . . Kick . | . . . . Crush 6 | . . 6 . Escape Stasis . | . . . . Rewire . | . . . . Trap . | . . . . Miscellaneous . | . . . . Route ------- -11/Junkyard -10/Materials (discovered 3 exits: [*Mat] / [*Min x2]) -10/Mines (discovered 2 exits: [*Mat] / *Exi) -10/Exiles (discovered 1 exit: [*Min]) History --------- Turn | Location | Event 2 | -11/Junkyard | Met Revision 17 5 | -11/Junkyard | Discovered new exit (range 15) 120 | -11/Junkyard | Entered Materials 312 | -10/Materials | Build established: Mutant 820 | -10/Materials | Discovered new exit (range 7) 945 | -10/Materials | Discovered new exit (range 10) 1165 | -10/Materials | Discovered new exit (range 13) 1266 | -10/Materials | Repaired Lgt. Treads 1293 | -10/Materials | Repaired Lgt. Treads 1395 | -10/Materials | Entered Mines 1400 | -10/Mines | Met a Derelict bent on vengeance 1400 | -10/Mines | Core integrity fell below 50% 1451 | -10/Mines | Found a damaged Exp. Sensor Array with a note attached 1454 | -10/Mines | Found Prototype Device 1497 | -10/Mines | Discovered new exit (range 5) 1570 | -10/Mines | Excavation squad dispatched 1570 | -10/Mines | A large section of the Mines collapsed 2060 | -10/Mines | Received a Rocket Launcher from a helpful Derelict 2208 | -10/Mines | Deemed a non-threat by the Exiles lab entrance 2208 | -10/Mines | Discovered new exit (range 5) 2215 | -10/Mines | Entered Exiles 2330 | -10/Exiles | Met 8R-AWN 2357 | -10/Exiles | Met EX-HEX 2413 | -10/Exiles | Met EX-DEC 2582 | -10/Exiles | Met EX-BIN 2619 | -10/Exiles | Aligned with FarCom system 2621 | -10/Exiles | Given EX-Vault access code 2658 | -10/Exiles | Opened EX-Vault 2676 | -10/Exiles | Found AWS/Gauss 2680 | -10/Exiles | Found PSU Rigger 2684 | -10/Exiles | Found AWS/Thermal 2742 | -10/Exiles | Warned to stay clear of 0b10 Research branches 2940 | -10/Exiles | Discovered new exit (range 14) 3076 | -10/Exiles | Attacked by the Exiles 3104 | -10/Exiles | Core integrity fell below 20% 3117 | -10/Exiles | Destroyed by 8R-AWN with 8R-AWN's Boregun Last Messages --------------- 03103_ Penetrated by HV Slug. 03107_ HV Slug penetrates Machine. 03107_ HV Slug penetrates as-32894. 03107_ as-32894 suffers critical hit (Destroy). 03107_ as-32894 destroyed. 03107_ HV Slug penetrates as-16732. 03107_ as-16732 suffers critical hit (Destroy). 03107_ as-16732 destroyed. 03110_ Penetrated by HV Slug. 03110_ HV Slug penetrates Machine. 03110_ Penetrated by HV Slug. 03110_ Lgt. Treads destroyed. 03110_ HV Slug penetrates Machine. 03115_ Penetrated by HV Slug. 03115_ Critical hit (Destroy). 03115_ Lgt. Treads destroyed. 03115_ HV Slug penetrates Machine. 03115_ Penetrated by HV Slug. 03115_ HV Slug penetrates Machine. 03117_ Penetrated by HV Slug. Map ----- +----------------------------------------------------+ | ?#" """#??????????????????????????????? | | ?#" """##?????????????????????????????? | | ?## """""?????????????????????????????? | | ??# """##?????????????????????????????? | | ??#" "X" """""?????????????????????????????? | | ??#" """ # ?????????????????????????????? | | ??#" """""""""#??????????????????????????????? | | ?##" ###########??????????????????????????????? | | ##"" #????????????????????????????????????????? | | #"" #????????????????????????????????????????? | | """ ##???????????????????????????????????????? | | "" ##???###########????????????????????????? | | " #####"""""""""##???????????????????????? | | " """ """"##??????????????????????? | | "" " #??????????????????????? | | " """#??????????????????????? | | "a"#???????????#####??????? | | " "##?????????##" #??????? | | ""###???????#" #??????? | | """""" """#??????##" ##?????? | | #####""" "#????### ###???? | | ????#####""" ##???# ##### | | ????????##""" ##?## #""" | | ?????????#"""" ### | | ????????## %% ## | | ###??####" @ g #### | | ####""" ""#?#"""""#### | | """" #"""##?#######??# | | ######???????????? | | ##????????????????? | | ##?????????????????? | | " "" "" ""#??????????????????? | | ""## ##""" ""# % "##??????????????????? | | #### ######""" """##" ##???????????????????? | | #??# #????###""""### #????????????????????? | | ???# #??????######?#########????????????????????? | | ???! ??????????????????????????????????????????? | | ???" ??????????????????????????????????????????? | | ??#" ?????????????????????????????????????????? | | ???!!""!?????????????????????????????????????????? | | ???######????????????????????????????????????????? | | ?????????????????????????????????????????????????? | | ?????????????????????????????????????????????????? | | ?????????????????????????????????????????????????? | | ?????????????????????????????????????????????????? | | ?????????????????????????????????????????????????? | | ?????????????????????????????????????????????????? | | ?????????????????????????????????????????????????? | | ?????????????????????????????????????????????????? | | ?????????????????????????????????????????????????? | +----------------------------------------------------+ Best States ------------- Heat Dissipation 25 Energy Generation 10 Energy Capacity 250 Matter Stores 300 Matter Capacity 300 Sight Range 16 Terrain Scan Range 16 Terrain Scan Density 10 Armor Coverage 150 Evasion (%) 40 Targeting Accuracy 5 Recoil Reduction 2 Item Schematics ----------------- None Robot Schematics ------------------ None Fabricated ------------ Nothing Alien Tech Used ----------------- None Achievements -------------- Quantum Hacking True Hacker Challenges ------------ None Game ------ Seed WeightNeutronBeamcaster Manual? 0 Play Time 00:32:04 Cumulative 26.5 hours Start 2023.07.07 @ 18:46:19 End 2023.07.07 @ 21:41:07 Sessions 1 Manual Loads 0 Difficulty Rogue Special Mode None Game No. 15 Rogue 15 Adventurer 0 Explorer 0 Win Type - Total 0 Types 0/0/0/0/0/0/0/0/0 Lore% 24 Gallery% 26 Achievement% 26 Wizard Run 0 Options --------- ASCII 0 Keyboard 0 Movement Mouse Keybinds 0 Fullscreen 1 Font 18/SmallcapsGlow Map View 76x50 Tactical HUD 1 Map Filters NONE Filters NONE Steam X RUN: ac87c116-938c-4aac-a183-8cd22b1c5005